Cogmind - Beta 12 @@@ ROGUE MODE // 2023.06.15 @ 23:28:30 Player: wd Result: Destroyed by S-10 Pest with Light Assault Rifle Performance ------------- Evolutions (0) 0 Regions Visited (1) 200 Robots Destroyed (5) 25 Value Destroyed (98) 98 Prototype IDs (0) 0 Alien Tech Used (0) 0 Bonus (0) 0 TOTAL SCORE: 323 Bonus ------- None Cogmind --------- Core Integrity 0/250 Matter 298/300 Energy 100/100 System Corruption 2% Temperature Cool (0) Movement Core (50) Location -10/Materials Parts ------- > --- POWER (1) -------- (None) > --- PROPULSION (2) --- (None) > --- UTILITY (2) ------ (None) > --- WEAPON (2) ------- (None) > --- INVENTORY (5) ---- Aluminum Leg Flight Unit Peak State ------------ > --- POWER ------------ Light Ion Engine > --- PROPULSION ------- Aluminum Leg Aluminum Leg > --- UTILITY ---------- (None) > --- WEAPON ----------- Assault Rifle Light Assault Rifle > --- INVENTORY -------- Wheel Wheel Light Assault Rifle [Rating: 5] Favorites ----------- Power Light Ion Engine Engine Light Ion Engine Propulsion Aluminum Leg Leg Aluminum Leg Wheel Wheel Utility None Weapon Light Assault Rifle Ballistic Gun Light Assault Rifle Build | -11 -10 ------- Run | Jun Mat Slots Evolved . | . . Power . | . . Propulsion . | . . Utility . | . . Weapon . | . . Parts Attached 9 | 6 3 Power 1 | 1 . Engine 1 | 1 . Core . | . . Reactor . | . . Propulsion 5 | 3 2 Treads . | . . Leg 2 | 2 . Wheel 3 | 1 2 Hover . | . . Flight . | . . Utility . | . . Device . | . . Storage . | . . Processor . | . . Hackware . | . . Protection . | . . Artifact . | . . Weapon 3 | 2 1 Energy Gun . | . . Energy Cannon . | . . Ballistic Gun 3 | 2 1 Ballistic Cannon . | . . Launcher . | . . Special Weapon . | . . Impact Weapon . | . . Slashing Weapon . | . . Piercing Weapon . | . . Special Melee Weapon . | . . Unidentified Prototypes . | . . Parts Lost 6 | 1 5 Power 1 | 1 . Propulsion 2 | . 2 Utility . | . . Weapon 3 | . 3 Highest Loss Streak 4 | 1 4 To Critical Strikes . | . . Average Slot Usage (%) 47 | . 47 Leg 14 | . 14 Wheel 11 | . 11 Ballistic Gun 21 | . 21 Naked Turns 2 | . 2 Heaviest Build 6 | 6 3 Greatest Support 20 | 20 20 Greatest Overweight (x) . | . . Average Overweight (x) . | . . Largest Inventory Capacity 5 | 5 5 Average Capacity 5 | 5 5 Most Carried 5 | 5 5 Average Carried 2 | 2 2 Final Capacity 5 | 5 5 Final Carried 3 | 3 2 Class Distribution -------------------- 100% | Mutant Dominant Class ---------------- Mutant | -10/Materials Resources | -11 -10 ----------- Run | Jun Mat Matter Collected 344 | 295 49 Remotely . | . . Salvage Created 125 | 41 84 Parts 6 | . 6 Haulers Intercepted . | . . Recyclers Shooed . | . . Parts Field Recycled . | . . Retrieved Matter . | . . Parts Self-Destructed . | . . Prevented . | . . Kills | -11 -10 ------- Run | Jun Mat Combat Hostiles Destroyed 5 | 1 4 Guns 5 | 1 4 Classes Destroyed 2 | 1 1 Swarmer 3 | . 3 Grunt 2 | 1 1 Best Kill Streak 3 | 1 3 Combat Bots Only 3 | 1 3 Max Kills in Single Turn 1 | 1 1 Gunslinging . | . . Exploded . | . . Melee . | . . Uniques/NPCs Destroyed . | . . Combat | -11 -10 -------- Run | Jun Mat Damage Taken 788 | 132 656 Core 258 | . 258 Absorbed by Shields . | . . Core Remaining (%) 100 | 100 . Volleys Fired 31 | 10 21 Largest 2 | 2 2 Hottest 40 | 40 40 Shots Fired 54 | 20 34 Gun 54 | 20 34 Cannon . | . . Launcher . | . . Special . | . . Kinetic 54 | 20 34 Thermal . | . . Explosive . | . . Electromagnetic . | . . Robot Hit Streak 3 | 2 3 Robot Miss Streak 4 | 4 3 Penetration Max . | . . Secondary Targets . | . . Shots Hit Robots 25 | 8 17 Core Hits 13 | 2 11 Critical Kills . | . . Critical Parts Destroyed 1 | . 1 Critical Strikes 1 | . 1 Destroy 1 | . 1 Melee Attacks . | . . Impact . | . . Slashing . | . . Piercing . | . . Sneak Attacks . | . . Combat Hostiles . | . . Follow-up Attacks . | . . Damage Inflicted 235 | 89 146 Guns 226 | 89 137 Cannons . | . . Explosions . | . . Melee . | . . Ramming 9 | . 9 Kinetic 226 | 89 137 Thermal . | . . Explosive . | . . Electromagnetic . | . . Impact . | . . Slashing . | . . Piercing . | . . Highest Corruption 2 | . 2 Average Corruption 2 | . 2 Corruption Purged . | . . Corruption Blocked . | . . Effects 1 | . 1 Matter Fused 1 | . 1 Overload Shots . | . . Overflow Damage . | . . Projectiles . | . . Explosions . | . . Melee . | . . Knockbacks . | . . Impact . | . . Kinetic . | . . Secondary . | . . Self-Inflicted Damage 4 | . 4 Shots . | . . Rammed 6 | . 6 Targets Rammed 6 | . 6 Kicked . | . . Crushed . | . . Highest Temperature 16 | 12 16 Average Temperature 5 | 5 5 Received Heat Transfer 285 | 72 213 Siege Activations . | . . Robots Corrupted . | . . Combat Hostiles . | . . Parts Fried . | . . Impact Corruptions . | . . Robots Melted . | . . Combat Hostiles . | . . Parts Melted . | . . Heat Transferred . | . . Parts Sabotaged . | . . Parts Stolen . | . . Parts Stripped . | . . Power Chain Reactions . | . . Missiles Intercepted . | . . Alert | -11 -10 ------- Run | Jun Mat Peak Influence 123 | 20 123 Initial 13 | . 13 Average 48 | 6 80 Maximum Alert Level . | . . Low Security (%) 100 | 100 100 Level 1 . | . . Level 2 . | . . Level 3 . | . . Level 4 . | . . Level 5 . | . . High Security . | . . Max Security . | . . Squads Dispatched . | . . Investigation . | . . Extermination . | . . Reinforcement . | . . Assault . | . . Garrison . | . . Intercept . | . . Searches Triggered . | . . Construction Impeded . | . . Haulers Reinforced . | . . Active Scanning Responses . | . . Cargo Convoy Interrupts . | . . Stealth | -11 -10 --------- Run | Jun Mat Distress Signals 2 | . 2 Communications Jammed . | . . Distress Signals . | . . Times Spotted 13 | 1 12 Peak Tracking Total 6 | 1 6 Tactical Retreats . | . . Traps | -11 -10 ------- Run | Jun Mat Traps Triggered . | . . Indirectly . | . . Trap Hack Attempts . | . . Triggered . | . . Disarmed . | . . Reprogrammed . | . . Reused . | . . Traps Extracted . | . . Installed . | . . Triggered . | . . Machines | -11 -10 ---------- Run | Jun Mat Machines Disabled . | . . Max in Single Turn . | . . Machines Repaired . | . . Machines Sabotaged . | . . Overloaded Fab Kills . | . . Hacking | -11 -10 --------- Run | Jun Mat Machines Accessed . | . . Terminals . | . . Fabricators . | . . Repair Stations . | . . Recycling Units . | . . Scanalyzers . | . . Garrison Access . | . . Total Hacks . | . . Successful . | . . Failed . | . . Catastrophic . | . . Database Lockouts . | . . Manual . | . . Terminals . | . . Fabricators . | . . Repair Stations . | . . Recycling Units . | . . Scanalyzers . | . . Garrison Access . | . . Terminal Hacks . | . . Fabricator Hacks . | . . Repair Station Hacks . | . . Recycling Unit Hacks . | . . Scanalyzer . | . . Garrison Access Hacks . | . . Unauthorized Hacks . | . . Terminals . | . . Fabricators . | . . Repair Stations . | . . Recycling Units . | . . Scanalyzers . | . . Garrison Access . | . . Data Cores Recovered . | . . Used . | . . Hacking Detections . | . . Full Trace Events . | . . Feedback Events . | . . Feedback Blocked . | . . Robot Schematics Acquired . | . . Robots Built . | . . Authchips . | . . Time . | . . Total Robot Build Rating . | . . Part Schematics Acquired . | . . Parts Built . | . . Authchips . | . . Time . | . . Total Part Build Rating . | . . Parts Repaired . | . . Time . | . . Parts Recycled . | . . Recycled Matter . | . . Retrieved Matter . | . . Retrieved Components . | . . Parts Scanalyzed . | . . Part Schematics Acquired . | . . Parts Damaged . | . . Bothacking | -11 -10 ------------ Run | Jun Mat Used RIF Installer . | . . Robots Hacked . | . . Non-combat . | . . Combat . | . . Robot Hacks Applied . | . . Relay Couplers Released . | . . Fabnet Peak Effective % . | . . Robots Rewired . | . . Allies Hacked . | . . Hacks Repelled . | . . Allies | -11 -10 -------- Run | Jun Mat Total Allies . | . . Largest Group . | . . Highest-Rated Group . | . . Highest-Rated Ally . | . . Total Orders . | . . Ally Attacks . | . . Total Damage . | . . Kills . | . . Allies Corrupted . | . . Allies Melted . | . . Intel | -11 -10 ------- Run | Jun Mat Robot Analysis Total . | . . Derelict Logs Recovered . | . . Drone Launches . | . . Drone Recoveries . | . . Exploration | -11 -10 ------------- Run | Jun Mat Turns Passed 353 | 150 203 Spaces Moved 235 | 109 126 Core 34 | 34 . Treads . | . . Legs 143 | 75 68 Wheels 58 | . 58 Hover . | . . Flight . | . . Fastest Speed 50 | 50 80 Average Speed 100 | 98 101 Slowest Speed 120 | 120 120 Overloaded Moves . | . . Propulsion Burnouts . | . . Robots Hopped . | . . Cave-ins Triggered . | . . Exploration Rate (%) 11 | 8 14 Regions Visited 1 Branch Regions . Pre-discovered Areas . | . . Known Exits Taken . | . . Unknown Exits Taken 1 | 1 . Scrap Searched . | . . Spaces Dug . | . . Terrain Destroyed . | . . Melee . | . . Projectile . | . . AOE . | . . Terrain Rammed . | . . Walls Destroyed . | . . Machines Disabled . | . . Actions | -11 -10 --------- Run | Jun Mat Total 308 | 134 174 Wait 16 | 1 15 Move 234 | 108 126 Hop . | . . Pick Up 9 | 8 1 Fast Attach . | . . Attach 9 | 6 3 Detach 2 | 1 1 Swap . | . . Drop 1 | . 1 Fire 31 | 10 21 Melee . | . . Ram 6 | . 6 Kick . | . . Crush . | . . Escape Stasis . | . . Rewire . | . . Trap . | . . Miscellaneous . | . . Route ------- -11/Junkyard -10/Materials History --------- Turn | Location | Event 2 | -11/Junkyard | Met Revision 17 73 | -11/Junkyard | Discovered new exit (range 8) 151 | -11/Junkyard | Entered Materials 300 | -10/Materials | Build established: Mutant 339 | -10/Materials | Core integrity fell below 50% 348 | -10/Materials | Core integrity fell below 20% 354 | -10/Materials | Destroyed by S-10 Pest with Light Assault Rifle Last Messages --------------- Acquired 2 matter. K-01 Serf collects debris. When the line of fire is red, you are attempting to shoot through an object at another target, which incurs significant penalties. Acquired 19 matter. K-01 Serf collects debris. G-34 Mercenary destroyed. Wheel destroyed. Lgt. Assault Rifle destroyed. R-06 Scavenger collects Ion Engine. Lgt. Assault Rifle destroyed. Slammed into G-34 Mercenary. Ramming works as a last resort when unarmed or blocked, but can have serious negative consequences. Slammed into G-34 Mercenary. Destabilizing: System corrupted (+2). Slammed into R-06 Scavenger. W-16 Scout sends out distress signal. System corrupted: Matter fused (-7). Wheel destroyed. Map ----- +----------------------------------------------------+ | ?????????????????????????????????????????????????? | | ?????????????????????????????????????????????????? | | ?????????????????????????????????????????????????? | | ?????????????????????????????????????????????????? | | ?????????????????????????????????????????????????? | | ?????????????????????????????????????????????????? | | ?????????????????????????????????????????????????? | | ?????????????????????????????????????????????????? | | ???????????????????????????? ???????????????????? | | ????????????????????? ??? ???????????????????? | | ?????????????????????# ??" #??????????????????? | | ?????????????????????# ??" #??????????????????? | | ?????????????????????# """ #??????????????????? | | ?????????????????????#u """ #??????????????????? | | ?????????????????????# """ #??????????????????? | | ?????????????????????+ #??????????????????? | | ?????????????????????# #??????????????????? | | ?????????????????????# """r #??????????????????? | | ??????????????????####^ """ #??????????????????? | | ??????????????????? r""" #??????????????????? | | ?????????????????????# """ ############???????? | | ?????????????????????# """ # % % #???????? | | ?????????????? ""????# # %%%%% #???????? | | ?????????????" """ ### w #g """ """ #???????? | | ?????????# + s ss /g """ """ #???????? | | ?????????/ ### @ # """ """ #???????? | | ?????????????????????# ^ # #???????? | | ?????????????????????# ####+#######???????? | | ?????????????????????# "T" #?????????????? | | ?????????????????????# #?????????????? | | ?????????????????????# +?????????????? | | ?????????????????????# ###+#######?????????????? | | ?????????????????????# #? ??????????????????? | | ?????????????????????# #? """ ????????????????? | | ?????????????????????# # """ ???????????????? | | ?????????????????????# # """ #??????????????? | | ?????????????????????# # #??????????????? | | ?????????????????????# # ""??????????????????? | | ?????????????????????# # ""??????????????????? | | ?????????????????????# # "???????????????????? | | ?????????????????????# # ????????????????????? | | ?????????????????????# ####????????????????????? | | ?????????????????????# ##??????????????????????? | | ?????????????????????# T#??????????????????????? | | ?????????????????????# ##??????????????????????? | | ?????????????????????# #???????????????????????? | | ?????????????????????# #???????????????????????? | | ?????????????????????# #???????????????????????? | | ?????????????????????#####???????????????????????? | | ?????????????????????????????????????????????????? | +----------------------------------------------------+ Best States ------------- Heat Dissipation 25 Energy Generation 10 Energy Capacity 125 Matter Stores 300 Matter Capacity 300 Sight Range 16 Terrain Scan Density 10 Evasion (%) 55 Item Schematics ----------------- None Robot Schematics ------------------ None Fabricated ------------ Nothing Alien Tech Used ----------------- None Achievements -------------- None Challenges ------------ None Game ------ Seed DataAerolevConstruct Manual? 0 Play Time 00:17:28 Cumulative 0.5 hours Start 2023.06.15 @ 23:07:07 End 2023.06.15 @ 23:28:30 Sessions 1 Manual Loads 0 Difficulty Rogue Special Mode None Game No. 1 Rogue 1 Adventurer 0 Explorer 0 Win Type - Total 0 Types 0/0/0/0/0/0/0/0/0 Lore% 0 Gallery% 0 Achievement% 5 Wizard Run 0 Options --------- ASCII 0 Keyboard 0 Movement Numpad Keybinds 0 Fullscreen 1 Font 24/Smallcaps Map View 76x50 Tactical HUD 0 Map Filters NONE Filters NONE Steam 1 RUN: ba7afa81-8719-4694-8611-f15b1c4c8df4